[Event "Charlotte GM-A May 2022"]
[Site "Charlotte"]
[Date "2022.05.06"]
[Round "4.1"]
[White "Korley, Kassa"]
[Black "Belous, Vladimir"]
[Result "0-1"]
[ECO "E68"]
[WhiteElo "2413"]
[BlackElo "2525"]
[Annotator "TA"]
[PlyCount "74"]
[EventDate "2022.05.04"]
[EventType "tourn"]
[EventCountry "USA"]
[SourceTitle "playchess.com"]
[Source "ChessBase"]
[SourceQuality "1"]
[TimeControl "5400+30"]

{[%evp 23,74,12,22,28,28,29,43,34,70,33,51,7,0,0,0,0,0,0,0,0,0,0,0,0,0,8,10,0,8,5,104,111,114,105,204,164,595,585,913,812,812,812,768,754,29990,29991,29991,-714,-676,-711,-672,-29977,-29978]} 1. Nf3 {[%emt 0:00:03]} Nf6 {[%emt 0:02:16]} 2. g3 {[%emt 0:00:16]} g6 {[%emt 0:00:10]} 3. Bg2 {[%emt 0:00:06]} Bg7 {[%emt 0:00:04]} 4. O-O {[%emt 0:00:06]} O-O {[%emt 0:00:04]} 5. d4 {[%emt 0:00:07]} d6 {[%emt 0:00:07]} 6. c4 {[%emt 0:00:26]} Nbd7 {[%emt 0:00:05]} 7. Nc3 {[%emt 0:00:06]} e5 {[%emt 0:00:11]} 8. e4 {[%emt 0:00:16]} a6 {[%emt 0:00:10]} 9. Re1 {[%emt 0:00:58]} exd4 {[%emt 0:00:32]} 10. Nxd4 {[%emt 0:00:04]} Rb8 {[%emt 1:31:51]} 11. a4 {[%emt 0:05:52]} Re8 {[%emt 0:00:00]} 12. h3 {[%emt 0:01:07]} Ne5 {[%emt 0:00:00]} 13. b3 {[%emt 0:00:37] E68: King's Indian: Fianchetto: 6...Nbd7 7 0-0 e5 8 e4.} c5 {[%emt 0:00:00]} 14. Nc2 {[%emt 0:07:20]} Be6 {[%emt 0:00:00] [#]} 15. Bd2 $146 {[%emt 0:11:59] White is slightly better.} ({Predecessor:} 15. Bb2 h5 16. Rb1 Bh8 17. Ne3 Nc6 18. Ncd5 Bxd5 19. cxd5 Nd4 20. Nc2 Nxc2 21. Qxc2 {½-½ (38) Agrest,E (2585)-Radjabov,T (2748) Khanty-Mansiysk 2010}) 15... Qd7 {[%emt 0:00:00]} 16. Kh2 {[%emt 0:00:04]} (16. f4 $5 {[%cal Rf4e5]} Nc6 17. g4 $16) 16... Nd3 {[%emt 0:00:00]} 17. Re2 {[%emt 0:01:43]} b5 {[%emt 0:00:00]} 18. axb5 {[%emt 0:03:31]} axb5 {[%emt 0:00:00]} 19. Nxb5 {[%emt 0:00:44] And now Ra7 would win.} Nb2 $1 {[%emt 0:00:00]} 20. Qe1 {[%emt 0:17:19] Black must now prevent Ra7.} Nxc4 $1 {[%emt 0:00:00]} 21. bxc4 {[%emt 0:00:03]} Bxc4 {[%emt 0:00:00]} 22. Nc3 {[%emt 0:09:31] Hoping for Re3.} Bxe2 {[%emt 0:00:00]} 23. Qxe2 {[%emt 0:00:08] aiming for Qd3.} d5 $1 {[%emt 0:00:00]} 24. Bf4 {[%emt 0:01:04]} Rb3 {[%emt 0:00:00] [#]} 25. e5 $1 $36 {[%emt 0:04:52][%mdl 2048] Threatens to win with Qd2. White has the initiative.} Rxc3 {[%emt 0:00:00]} 26. Qd2 {[%emt 0:01:09]} d4 {[%emt 0:00:00]} 27. exf6 $16 {[%emt 0:00:14]} Bxf6 {[%emt 0:00:00] [#]} 28. Ne3 {[%emt 0:02:05] Inhibits Qf5.} Rb3 {[%emt 0:00:00]} (28... Rcxe3 $16 29. Bxe3 (29. fxe3 g5 $15) 29... c4) 29. Nd5 {[%emt 0:00:21]} Bd8 {[%emt 0:00:00]} (29... Bg7 {is more resistant.}) 30. Ra8 $18 {[%emt 0:02:14]} Qb5 {[%emt 0:00:00] [#]} 31. Be5 $1 {[%emt 0:02:25][%mdl 576] Deflection} Rxe5 {[%emt 0:00:00]} 32. Rxd8+ {[%emt 0:02:10]} Kg7 {[%emt 0:00:00]} 33. Qf4 {[%emt 0:00:12]} Qe2 {[%emt 0:00:00]} 34. Qf6+ {[%emt 0:07:25]} Kh6 {[%emt 0:00:00]} 35. Nf4 $4 {[%emt 0:01:33][%mdl 8192]} (35. Rg8 {and life is good for White.} Rf3 36. Qg7+ Kg5 37. h4+ Kf5 {[#]} 38. Nc3 $1 {[%mdl 512]} Ke6 39. Nxe2 Rxe2 40. Re8+ Kd7 41. Rxe2) 35... Qxf2 $19 {[%emt 0:00:00]} 36. Qh4+ {[%emt 0:03:30]} Kg7 {[%emt 0:00:00] ( -> ...Rb1)} 37. Nxg6 {[%emt 0:03:59]} Re1 {[%emt 0:00:00] What a bad dream for White.  Weighted Error Value: White=0.74/Black=0.77} ({Much less strong is} 37... Kxg6 38. Rg8+ Kf5 39. Qg5+ Ke6 40. Re8+ Kd7 41. Qd8#) 0-1

[Event "Charlotte GM-A May 2022"]
[Site "Charlotte"]
[Date "2022.05.06"]
[Round "4.2"]
[White "Mardov, Dimitar"]
[Black "Ostrovskiy, Aleksandr"]
[Result "1-0"]
[ECO "B11"]
[WhiteElo "2402"]
[BlackElo "2397"]
[Annotator "TA"]
[PlyCount "109"]
[EventDate "2022.05.04"]
[EventType "tourn"]
[EventCountry "USA"]
[SourceTitle "playchess.com"]
[Source "ChessBase"]
[SourceQuality "1"]
[TimeControl "5400+30"]

{[%evp 10,109,35,33,29,19,19,22,15,16,21,22,23,27,25,17,22,19,30,18,22,20,18,15,13,10,24,0,5,10,15,13,52,18,20,18,16,14,18,18,16,0,0,0,0,0,44,49,30,39,33,37,34,42,52,21,29,21,25,32,34,0,98,88,275,283,1082,364,358,349,324,175,175,175,29951,29955,29944,800,29961,29963,29965,29966,29965,29967,29967,29968,29969,29970,29970,29971,29970,29971,29970,29969,29969,29970,29969,29967,12792,4681,4651,4614]} 1. e4 {[%emt 0:00:02]} c6 {[%emt 0:04:45]} 2. Nc3 {[%emt 0:00:13]} d5 {[%emt 0:00:08]} 3. Nf3 {[%emt 0:00:04]} dxe4 {[%emt 0:00:48]} 4. Nxe4 {[%emt 0:00:57]} Nf6 {[%emt 0:00:10]} 5. Qe2 {[%emt 0:01:13]} Nxe4 {[%emt 1:27:09]} 6. Qxe4 {[%emt 0:00:05]} Nd7 {[%emt 0:00:00] B11: Caro-Kann: Two Knights Variation.} 7. g3 {[%emt 0:01:14]} Nf6 {[%emt 0:00:00]} 8. Qe2 {[%emt 0:01:02]} Bf5 {[%emt 0:00:00] The position is equal.} 9. d4 {[%emt 0:01:06]} e6 {[%emt 0:00:00]} 10. Bg2 {[%emt 0:00:28] [#]} h6 $146 {[%emt 0:00:00]} ({Predecessor:} 10... Be7 11. O-O O-O 12. h3 h6 13. Rd1 Qa5 14. c4 Rfd8 15. Bd2 Qb6 16. Bc3 a5 17. a3 a4 {1-0 (53) Bivol,A (2368)-Babiy,O (2259) Chess.com INT 2021}) 11. O-O {[%emt 0:00:47]} Be7 {[%emt 0:00:00]} 12. Rd1 {[%emt 0:01:32]} O-O {[%emt 0:00:00]} 13. c4 {[%emt 0:04:02]} a5 {[%emt 0:00:00]} 14. Bd2 {[%emt 0:05:24]} a4 {[%emt 0:00:00]} 15. Bc3 {[%emt 0:05:58]} Be4 {[%emt 0:00:00]} 16. Ne5 {[%emt 0:05:54][%cal Bf3e5,Be5d3,Bd3f4][%mdl 32]} Bxg2 {[%emt 0:00:00]} 17. Kxg2 {[%emt 0:00:06]} Qc7 {[%emt 0:00:00]} (17... Nd7 {is interesting.} 18. d5 exd5 19. cxd5 Nxe5 20. dxc6 Qb6) 18. Qf3 {[%emt 0:06:32]} Rad8 {[%emt 0:00:00]} 19. Rac1 {[%emt 0:01:30]} Nd7 {[%emt 0:00:00]} 20. Nd3 {[%emt 0:04:58]} Qb8 {[%emt 0:00:00]} 21. h4 {[%emt 0:05:51]} Rfe8 {[%emt 0:00:00]} 22. Re1 {[%emt 0:02:22]} Bf8 {[%emt 0:00:00]} 23. Rcd1 {[%emt 0:03:07]} Qc7 {[%emt 0:02:12]} 24. Nf4 {[%emt 0:11:50]} b5 {[%emt 0:03:27]} 25. b3 {[%emt 0:13:16]} axb3 {[%emt 0:00:12]} 26. axb3 {[%emt 0:00:35]} bxc4 {[%emt 0:00:15]} 27. bxc4 {[%emt 0:00:39]} Bd6 {[%emt 0:03:28]} 28. Nh5 {[%emt 0:00:44] Hoping for d5.} g6 {[%emt 0:00:41]} 29. Nf6+ {[%emt 0:03:26]} Nxf6 {[%emt 0:00:02]} 30. Qxf6 {[%emt 0:00:07] d5 is the strong threat.} Be7 {[%emt 0:01:32]} 31. Qf3 {[%emt 0:00:06]} h5 {[%emt 0:00:23]} 32. g4 {[%emt 0:02:18]} hxg4 {[%emt 0:00:19]} 33. Qxg4 {[%emt 0:00:19][%cal Oe1e6] Black must now prevent Rxe6!} Bf6 $1 {[%emt 0:00:22]} 34. h5 {[%emt 0:00:46]} g5 {[%emt 0:00:13]} 35. Re4 {[%emt 0:04:40]} Kh7 {[%emt 0:01:15]} (35... c5 $11 {remains equal.}) 36. Qf3 $1 $36 {[%emt 0:01:11][%mdl 2048] White is really pushing.} Bg7 {[%emt 0:00:35] [#] This costs Black the game.} (36... Qe7 $16) 37. h6 $1 $18 {[%emt 0:02:56]} Bxh6 {[%emt 0:00:29]} (37... Bh8 38. Ba5 Qd7 39. Bxd8 Rxd8) 38. Ba5 $2 {[%emt 0:02:29]} Qe7 {[%emt 0:00:33]} (38... Qxa5 {gets mated.} 39. Qxf7+ Kh8 40. Rh1 Qf5 41. Rxh6+) 39. Bxd8 {[%emt 0:00:27]} Rxd8 {[%emt 0:00:01]} 40. d5 {[%emt 0:00:37]} (40. Re3 $142) 40... cxd5 {[%emt 0:00:12]} 41. cxd5 {[%emt 0:00:46]} Bg7 $2 {[%emt 0:01:16]} (41... Rd6 $18 42. Re3 g4 43. Qe4+ (43. Qxg4 Bxe3 44. fxe3 exd5 $11) 43... Kg7) 42. dxe6 {[%emt 0:03:50]} Rxd1 {[%emt 0:00:13]} 43. Qh5+ {[%emt 0:00:49]} (43. exf7 $142 Qd6 44. Qh5+ Bh6 45. f8=Q Qxf8 46. Qxd1 Qf5 47. Qd4 Bf8 48. Re5) 43... Bh6 {[%emt 0:00:39]} 44. Qxd1 {[%emt 0:00:11]} fxe6 {[%emt 0:00:33] KQR-KQB} 45. Qg4 {[%emt 0:00:15]} Bg7 {[%emt 0:00:36]} 46. Rxe6 {[%emt 0:00:19]} Qb7+ {[%emt 0:00:19]} 47. Qf3 {[%emt 0:00:44]} Qxf3+ {[%emt 0:00:38]} 48. Kxf3 {[%emt 0:00:06] KR-KB} Bd4 {[%emt 0:00:01]} 49. Kg3 {[%emt 0:02:35]} Kg7 {[%emt 0:00:06]} 50. f3 {[%emt 0:00:39]} Kf7 {[%emt 0:00:22]} 51. Re4 {[%emt 0:00:14]} Bc3 {[%emt 0:00:28]} 52. Kg4 {[%emt 0:00:40]} Kf6 {[%emt 0:00:21]} 53. Rc4 {[%emt 0:00:42]} Bd2 {[%emt 0:00:06]} 54. Rc6+ {[%emt 0:00:03]} Ke5 {[%emt 0:00:22]} 55. Rg6 {[%emt 0:00:08] Weighted Error Value: White=0.16 (very precise) /Black=0.36} 1-0

[Event "Charlotte GM-A May 2022"]
[Site "Charlotte"]
[Date "2022.05.06"]
[Round "4.3"]
[White "Spicha, K. Alexander"]
[Black "Liang, Jason"]
[Result "1/2-1/2"]
[ECO "D02"]
[WhiteElo "2083"]
[BlackElo "2432"]
[Annotator "TA"]
[PlyCount "78"]
[EventDate "2022.05.04"]
[EventType "tourn"]
[EventCountry "USA"]
[SourceTitle "playchess.com"]
[Source "ChessBase"]
[SourceQuality "1"]
[TimeControl "5400+30"]

{[%evp 9,78,4,35,24,12,12,18,8,17,8,15,20,10,11,22,-5,16,19,53,59,88,85,97,77,91,56,54,54,55,54,56,27,62,58,76,73,102,101,99,34,29,36,32,38,43,0,9,0,52,58,60,67,62,52,41,52,39,45,68,70,59,58,64,56,68,0,8,0,56,0,31]} 1. d4 {[%emt 0:00:45]} d5 {[%emt 0:00:03]} 2. Nf3 {[%emt 0:00:18]} Nf6 {[%emt 0:00:09]} 3. Bf4 {[%emt 0:00:06]} c5 {[%emt 0:00:19]} 4. e3 {[%emt 0:00:23]} e6 {[%emt 0:00:30]} 5. Nbd2 {[%emt 0:00:29]} Bd6 {[%emt 0:01:14]} 6. Bxd6 {[%emt 0:04:03] D02: 1 d4 d5 2 Nf3 sidelines, including 2...Nf6 3 g3 and 2...Nf6 3 Bf4.} Qxd6 {[%emt 0:00:08]} 7. dxc5 $1 {[%emt 0:00:29][%mdl 4] is now more promising than 7.c3.} Qxc5 {[%emt 0:00:09]} 8. c4 {[%emt 0:00:03]} O-O {[%emt 0:05:28]} 9. Rc1 {[%emt 0:08:18]} Nc6 {[%emt 0:02:00]} 10. cxd5 {[%emt 0:20:23]} Qxd5 {[%emt 0:00:08] [#]} 11. Qb3 $146 {[%emt 0:01:08]} ({Predecessor:} 11. Bc4 Qh5 12. O-O e5 13. Bb5 Bd7 14. Ne4 Rad8 15. Ng3 Qg4 16. h3 Qb4 17. Qa4 {1-0 (72) Vlasenko,M (2408)-Shakirov,M (2139) St Petersburg 2022}) 11... Qa5 {[%emt 0:03:52]} 12. Bb5 {[%emt 0:07:51]} Nb4 {[%emt 0:04:32]} (12... Ne4 $5) 13. Be2 {[%emt 0:04:11]} e5 {[%emt 0:04:32]} (13... Nxa2 $2 14. Ra1 $18) 14. O-O {[%emt 0:13:13]} Nc6 {[%emt 0:01:06] [#] Threatens to win with ...e4.} 15. Nc4 $1 {[%emt 0:01:42]} Qa6 {[%emt 0:08:08]} 16. Rfe1 {[%emt 0:08:37]} Be6 {[%emt 0:02:05] [#]} 17. Ncxe5 $1 {[%emt 0:01:59]} Nxe5 {[%emt 0:00:15] [#]} 18. Nxe5 {[%emt 0:00:24][%cal Bf3e5,Be5c4,Bc4d6][%mdl 32]} Qxa2 {[%emt 0:00:56]} 19. Qxa2 {[%emt 0:03:56]} Bxa2 {[%emt 0:00:06]} 20. Bf3 {[%emt 0:01:07]} Rfe8 {[%emt 0:02:09]} 21. Nc4 {[%emt 0:00:42] White is more active.} ({Much weaker is} 21. Bxb7 Rab8 22. Nc4 Bxc4 $15) 21... Re7 {[%emt 0:00:50]} 22. Nd6 {[%emt 0:03:36]} Bd5 {[%emt 0:01:46] [#]} 23. Bxd5 $1 {[%emt 0:01:43]} Nxd5 {[%emt 0:00:08]} 24. Rc8+ {[%emt 0:00:03]} ({Better is} 24. Red1 $16 Nf6 25. Rd4) 24... Rxc8 $14 {[%emt 0:00:08]} 25. Nxc8 {[%emt 0:00:02][%mdl 4096] Endgame KRN-KRN} Rc7 {[%emt 0:00:41]} 26. Nxa7 {[%emt 0:00:08]} Rc2 {[%emt 0:04:38]} 27. Kf1 {[%emt 0:05:34] And now Rd1 would win.} Kf8 {[%emt 0:01:49]} (27... Rxb2 $2 28. Rd1 $18) 28. Re2 {[%emt 0:00:06]} Rc5 {[%emt 0:04:46]} (28... Rc1+ $11 29. Re1 Rc2) 29. Rd2 {[%emt 0:00:07]} Ke7 {[%emt 0:00:12]} 30. Rd3 {[%emt 0:02:52]} Ra5 {[%emt 0:05:48] [#]} 31. Ke2 $1 {[%emt 0:00:02]} Ke6 {[%emt 0:06:07]} 32. Ra3 {[%emt 0:00:24]} Rxa3 {[%emt 0:04:25]} 33. bxa3 {[%emt 0:00:02] KN-KN} Kd6 {[%emt 0:00:18]} 34. Nb5+ {[%emt 0:01:38]} Kc5 $1 {[%emt 0:00:07]} 35. Nd4 {[%emt 0:00:06]} Nf4+ {[%emt 0:03:33]} 36. Kf3 {[%emt 0:01:19]} ({Don't play} 36. exf4 Kxd4 37. Kd2 Kc4 $11) (36. Kd2 $5 {[%cal Rd4b3]}) 36... Nd3 {[%emt 0:00:15]} 37. Ke2 {[%emt 0:00:27]} (37. h3 $14) 37... Nf4+ $1 $11 {[%emt 0:04:17]} 38. Kf3 {[%emt 0:00:05]} (38. Kd2 $11 {feels stronger.}) 38... Nd3 $1 $14 {[%emt 0:00:05]} 39. Ke2 {[%emt 0:00:05]} Nf4+ $1 {[%emt 0:05:49] Weighted Error Value: White=0.13 (very precise) /Black=0.11 (very precise)} 1/2-1/2

[Event "Charlotte GM-A May 2022"]
[Site "Charlotte"]
[Date "2022.05.06"]
[Round "4.4"]
[White "Song, Micheal"]
[Black "Sheng, Joshua"]
[Result "1-0"]
[ECO "D27"]
[WhiteElo "2408"]
[BlackElo "2487"]
[Annotator "TA"]
[PlyCount "59"]
[EventDate "2022.05.04"]
[EventType "tourn"]
[EventCountry "USA"]
[SourceTitle "playchess.com"]
[Source "ChessBase"]
[SourceQuality "1"]
[TimeControl "5400+30"]

{[%evp 12,59,27,22,25,14,0,16,0,4,6,0,0,0,0,0,6,0,29,8,29,11,30,22,18,8,20,16,20,4,360,359,327,331,312,120,125,94,99,95,392,409,437,418,5693,5693,29975,29975,29996,29997]} 1. d4 {[%emt 0:00:04]} d5 {[%emt 0:00:52]} 2. c4 {[%emt 0:00:44]} dxc4 {[%emt 0:00:03]} 3. Nf3 {[%emt 0:00:14]} Nf6 {[%emt 0:00:07]} 4. e3 {[%emt 0:00:24]} e6 {[%emt 0:00:08]} 5. Bxc4 {[%emt 0:00:39]} a6 {[%emt 0:00:01]} 6. O-O {[%emt 0:00:35]} c5 {[%emt 0:00:07]} 7. Nbd2 {[%emt 0:02:18]} Nbd7 {[%emt 0:03:32] D27: Queen's Gambit Accepted: Classical main line: 7 e4!? and 7 a4.} 8. e4 {[%emt 0:02:49]} b5 {[%emt 0:01:44]} 9. e5 {[%emt 0:00:50]} bxc4 {[%emt 0:04:37] The position is equal.} 10. exf6 {[%emt 0:00:11]} Nxf6 {[%emt 0:04:02]} 11. Nxc4 {[%emt 0:00:41] [#]} cxd4 $146 {[%emt 0:01:48]} ({Predecessor:} 11... Be7 12. dxc5 Qxd1 13. Rxd1 Bxc5 14. Be3 Be7 15. Nb6 Rb8 16. Ne5 Bb7 17. Rac1 Bd8 {½-½ (35) Petrov,N (2577)-Inarkiev,E (2661) Sochi 2020}) 12. Bf4 {[%emt 0:04:47]} Bc5 {[%emt 0:09:40]} 13. b4 {[%emt 0:02:45][%mdl 64] Deflection} Be7 {[%emt 0:00:03]} 14. Nfe5 {[%emt 0:01:46] Hoping for Nc6. Pair of Knights!} Bd7 {[%emt 0:09:54] Prevents Nc6.} 15. Nxd7 {[%emt 0:18:09]} (15. Qxd4 Bb5 16. Qb2 Nd5 $11) 15... Nxd7 {[%emt 0:00:03]} (15... Qxd7 $2 16. Nb6 Qb7 17. Qa4+ (17. Nxa8 Nd5 $18) (17. Qxd4 Rd8 $17) 17... Kf8 18. Nxa8 $18) 16. Nd6+ {[%emt 0:00:10]} Kf8 $1 {[%emt 0:05:03]} (16... Bxd6 17. Bxd6 Nb6 18. Qxd4 $16) 17. Qxd4 {[%emt 0:05:13]} Bf6 {[%emt 0:01:07]} 18. Qe4 {[%emt 0:02:00] And now Rad1 would win.} Bxa1 {[%emt 0:00:10]} 19. Rxa1 {[%emt 0:00:25][%cal Bf1a1,Ba1c1,Bc1c6][%mdl 32] Black must now prevent Re1.} Ra7 {[%emt 0:06:55]} 20. Rc1 {[%emt 0:21:48][%mdl 1024] Strongly threatening Rc8. White has compensation.} Nb6 {[%emt 0:06:51][%mdl 8192] Against Rc8} (20... Rc7 $1 $11 {and Black stays safe.}) 21. Rc6 $1 $18 {[%emt 0:15:48] aiming for Be3.} Rd7 {[%emt 0:06:14][%cal Ob6c8]} 22. g3 {[%emt 0:00:02]} Kg8 {[%emt 0:02:25]} 23. Qc2 $2 {[%emt 0:10:04]} (23. Qe5 $18) 23... g5 $16 {[%emt 0:06:19] [#]} 24. Be5 {[%emt 0:00:03]} ({Much weaker is} 24. Bxg5 $6 Qxg5 25. Rxb6 Kg7 $11) 24... f6 {[%emt 0:00:03] [#]} 25. Qc5 $36 {[%emt 0:01:39][%mdl 2048] Keeping Black busy. White is much more active.} fxe5 $2 {[%emt 0:01:26][%mdl 8192]} (25... h5 $16) 26. Qxe5 $18 {[%emt 0:02:34]} ({Not} 26. Rxb6 h5 $16) 26... h6 {[%emt 0:16:26]} 27. Qxe6+ {[%emt 0:00:05]} ({But not} 27. Rxb6 Rhh7 28. Qxe6+ Kf8 29. Rxa6 Ra7 30. Rxa7 Rxa7 31. Qxh6+ Kg8 32. Qe6+ Kf8 $18) 27... Kh7 {[%emt 0:00:07]} (27... Kf8 $142 28. Rxb6 Rhh7 29. Rxa6 Ra7) 28. Ne4 {[%emt 0:01:43][%csl Gc6,LRb6,LRh6][%cal Re6g6,Bd6e4,Be4f6,Bf6e8][%mdl 32]} Rg7 {[%emt 0:02:28] Inhibits Qg6+.} 29. Nf6+ {[%emt 0:00:06]} Kg6 {[%emt 0:00:03]} 30. Ne8+ {[%emt 0:00:26][%mdl 64] Discovered Attack.  Weighted Error Value: White=0.10 (very precise) /Black=0.66} 1-0

[Event "Charlotte GM-A May 2022"]
[Site "Charlotte"]
[Date "2022.05.06"]
[Round "4.5"]
[White "Stremavicius, Titas"]
[Black "Williams, Justus"]
[Result "1-0"]
[ECO "A13"]
[WhiteElo "2508"]
[BlackElo "2417"]
[Annotator "TA"]
[PlyCount "67"]
[EventDate "2022.05.04"]
[EventType "tourn"]
[EventCountry "USA"]
[SourceTitle "playchess.com"]
[Source "ChessBase"]
[SourceQuality "1"]
[TimeControl "5400+30"]

{[%evp 9,67,16,17,14,31,8,34,22,44,41,41,41,93,97,87,35,121,136,139,47,47,39,48,28,97,27,28,28,106,96,89,20,16,-24,0,-34,-54,-36,-41,-159,-142,-177,-178,-186,-100,-107,-103,-133,-102,-170,-60,-59,-22,-29,-20,-51,0,0,1237,1208]} 1. c4 {[%emt 0:00:03]} e6 {[%emt 0:00:19]} 2. g3 {[%emt 0:00:09]} d5 {[%emt 0:00:37]} 3. Nf3 {[%emt 0:00:11]} a6 {[%emt 0:04:03]} 4. b3 {[%emt 0:03:05] [#]} Nc6 $146 {[%emt 1:27:31]} ({Predecessor:} 4... dxc4 5. bxc4 b5 6. Qb3 b4 7. a3 c5 8. d4 a5 9. axb4 cxb4 10. Bg2 Bb7 11. Nc3 {½-½ (31) Oparin,G (2652)-Dreev,A (2647) Sochi 2021}) 5. Bg2 {[%emt 0:01:07]} d4 {[%emt 0:00:00]} 6. O-O {[%emt 0:14:46] A13: English Opening: 1...e6.} Bc5 {[%emt 0:00:00]} 7. d3 {[%emt 0:06:57]} Nge7 {[%emt 0:00:00]} 8. Na3 {[%emt 0:01:10] White is slightly better.} Rb8 {[%emt 0:00:00]} 9. Nc2 {[%emt 0:03:11]} b5 {[%emt 0:00:00]} 10. e3 {[%emt 0:01:04]} e5 {[%emt 0:00:00]} (10... dxe3 $14 11. fxe3 (11. Bxe3 Bb6 $14) 11... bxc4) 11. exd4 $16 {[%emt 0:22:02]} exd4 {[%emt 0:00:00]} 12. Re1 {[%emt 0:00:29]} (12. Qd2 $16) 12... f6 {[%emt 0:00:00] [#]} (12... O-O $14) 13. Ng5 $1 {[%emt 0:09:07][%mdl 512]} O-O {[%emt 0:04:30] [#]} 14. Ne6 {[%emt 0:09:56] White is more active.} (14. Nxh7 $1 $16 {[%mdl 512]} Rf7 15. Qh5) 14... Bxe6 $14 {[%emt 0:00:00]} 15. Rxe6 {[%emt 0:00:05]} Qd7 {[%emt 0:00:00]} 16. Qe2 {[%emt 0:04:25]} Rbe8 {[%emt 0:00:00]} (16... bxc4 $11 {remains equal.} 17. bxc4 Rb6) 17. Bd2 {[%emt 0:00:57]} (17. Bb2 $16) 17... bxc4 $1 $11 {[%emt 0:00:00]} 18. bxc4 {[%emt 0:00:06]} Ne5 {[%emt 0:00:00]} (18... Rb8 $11 {keeps the balance.}) 19. Rxa6 $16 {[%emt 0:01:35]} Nxc4 {[%emt 0:03:00][%cal Oe7f5]} 20. Bf4 {[%emt 0:04:50] A strong pair of Bishops.} (20. Bb4 $16 Bxb4 21. Nxb4) 20... Nb6 $11 {[%emt 0:00:30]} 21. Qd2 {[%emt 0:02:02] Strongly threatening Qa5.} (21. Qh5 {is more complex.} Nbd5 22. Re1 f5 23. Bd2) 21... Ng6 {[%emt 0:00:00]} 22. Qa5 {[%emt 0:04:51]} Nxf4 {[%emt 0:00:00]} 23. gxf4 {[%emt 0:02:57]} Bd6 {[%emt 0:00:00]} 24. Rxb6 {[%emt 0:05:02]} (24. a4 $15) 24... cxb6 $17 {[%emt 0:00:00]} 25. Qd5+ {[%emt 0:00:04]} Kh8 {[%emt 0:00:00]} 26. Nxd4 {[%emt 0:00:13] [#]} Rc8 {[%emt 0:00:00]} (26... f5 $1 $19 27. Rc1 Rf6) 27. Ne6 {[%emt 0:01:06]} Rfe8 {[%emt 0:00:00]} 28. f5 {[%emt 0:00:13]} Rc2 {[%emt 0:00:00]} 29. Be4 {[%emt 0:01:40] [#]} (29. d4 $17) 29... Rec8 {[%emt 0:00:14]} (29... g6 $1 $19 {[%cal Rg6f5] aiming for ...gxf5.} 30. d4 Re2) 30. Kg2 $15 {[%emt 0:02:07]} Qe7 {[%emt 0:00:57]} 31. Rb1 {[%emt 0:00:00]} Bb4 {[%emt 0:02:48]} 32. Nd4 {[%emt 0:00:21]} R2c5 {[%emt 0:00:54]} 33. Qe6 $11 {[%emt 0:00:15]} Ra5 $2 {[%emt 0:01:04][%mdl 8192]} 34. Qxc8+ {[%emt 0:00:42] Weighted Error Value: White=0.30/Black=0.31} 1-0